[Event "*** Titled Tuesday Blitz"]
[Site "Chess.com"]
[Date "2019.04.02"]
[Round "8"]
[White "nochewycandy"]
[Black "Davor_Rogic"]
[Result "0-1"]
[WhiteElo "2358"]
[BlackElo "2390"]
[TimeControl "180+2"]
[EndTime "15:51:37 PDT"]
[Termination "Davor_Rogic won on time"]

1. c4 {[%clk 0:03:01.9]} 1... e5 {[%clk 0:03:00]} 2. g3 {[%clk 0:03:01.6]} 2...
Nf6 {[%clk 0:03:00]} 3. Bg2 {[%clk 0:03:02.9]} 3... d5 {[%clk 0:03:01.5]} 4.
cxd5 {[%clk 0:03:04.8]} 4... Nxd5 {[%clk 0:03:02.9]} 5. Nf3 {[%clk 0:03:06.1]}
5... Nc6 {[%clk 0:03:03.6]} 6. O-O {[%clk 0:03:06.7]} 6... Nde7 {[%clk
0:03:04.8]} 7. Nc3 {[%clk 0:02:44.9]} 7... g6 {[%clk 0:03:03.3]} 8. d4 {[%clk
0:02:37]} 8... exd4 {[%clk 0:03:03]} 9. Nb5 {[%clk 0:02:38]} 9... Bg7 {[%clk
0:03:03.7]} 10. Bf4 {[%clk 0:02:37]} 10... Nd5 {[%clk 0:03:04]} 11. Bg5 {[%clk
0:02:38.6]} 11... f6 {[%clk 0:02:53.3]} 12. Bc1 {[%clk 0:02:23.1]} 12... Be6
{[%clk 0:02:38.5]} 13. Nbxd4 {[%clk 0:02:22.8]} 13... Nxd4 {[%clk 0:02:39.2]}
14. Nxd4 {[%clk 0:02:23.7]} 14... Bf7 {[%clk 0:02:39.9]} 15. e4 {[%clk
0:02:10.5]} 15... Nb6 {[%clk 0:02:36.2]} 16. Bf4 {[%clk 0:02:08.4]} 16... O-O
{[%clk 0:02:27.4]} 17. Rc1 {[%clk 0:02:08.1]} 17... c6 {[%clk 0:02:27.9]} 18. b3
{[%clk 0:02:06.2]} 18... Qe7 {[%clk 0:02:20.1]} 19. Qc2 {[%clk 0:02:00.7]} 19...
Rad8 {[%clk 0:02:12]} 20. Rcd1 {[%clk 0:01:54.5]} 20... f5 {[%clk 0:02:04.5]}
21. Ne2 {[%clk 0:01:26.1]} 21... fxe4 {[%clk 0:02:02.8]} 22. Bxe4 {[%clk
0:01:23.1]} 22... Nd5 {[%clk 0:02:02.9]} 23. Bf3 {[%clk 0:01:04.5]} 23... Nxf4
{[%clk 0:01:53.8]} 24. Nxf4 {[%clk 0:01:06.4]} 24... Rxd1 {[%clk 0:01:42.1]} 25.
Rxd1 {[%clk 0:01:08.3]} 25... Rd8 {[%clk 0:01:42.4]} 26. Rxd8+ {[%clk
0:01:07.4]} 26... Qxd8 {[%clk 0:01:44.3]} 27. Bg4 {[%clk 0:01:01.7]} 27... Qe7
{[%clk 0:01:30.3]} 28. Qd3 {[%clk 0:00:57.2]} 28... a5 {[%clk 0:01:25.1]} 29. h4
{[%clk 0:00:50.4]} 29... a4 {[%clk 0:01:24.2]} 30. Kh2 {[%clk 0:00:40.1]} 30...
a3 {[%clk 0:01:22.2]} 31. h5 {[%clk 0:00:33.2]} 31... g5 {[%clk 0:01:22.1]} 32.
Ng2 {[%clk 0:00:30.3]} 32... Qf6 {[%clk 0:01:21.2]} 33. Qd7 {[%clk 0:00:17.1]}
33... Qxf2 {[%clk 0:01:17]} 34. Qd8+ {[%clk 0:00:16.2]} 34... Bf8 {[%clk
0:01:17.9]} 35. Qxg5+ {[%clk 0:00:17.4]} 35... Kh8 {[%clk 0:01:12.4]} 36. Qe5+
{[%clk 0:00:18.3]} 36... Bg7 {[%clk 0:01:13.5]} 37. Qb8+ {[%clk 0:00:18.5]}
37... Bg8 {[%clk 0:01:14.5]} 38. Be6 {[%clk 0:00:19.9]} 38... Qf8 {[%clk
0:01:14.4]} 39. Qxf8 {[%clk 0:00:20.3]} 39... Bxf8 {[%clk 0:01:15.2]} 40. Bxg8
{[%clk 0:00:21.6]} 40... Kxg8 {[%clk 0:01:16.5]} 41. g4 {[%clk 0:00:21.6]} 41...
Kf7 {[%clk 0:01:17.6]} 42. Kg3 {[%clk 0:00:23]} 42... Ke6 {[%clk 0:01:15.5]} 43.
Ne3 {[%clk 0:00:22.7]} 43... Ke5 {[%clk 0:01:15.3]} 44. Kf3 {[%clk 0:00:21]}
44... h6 {[%clk 0:01:13.8]} 45. Nc2 {[%clk 0:00:20.4]} 45... b5 {[%clk
0:01:11.9]} 46. Ke3 {[%clk 0:00:20.1]} 46... Be7 {[%clk 0:01:08.3]} 47. Kf3
{[%clk 0:00:15.5]} 47... Bc5 {[%clk 0:01:06.5]} 48. g5 {[%clk 0:00:13.5]} 48...
hxg5 {[%clk 0:01:06.9]} 49. Kg4 {[%clk 0:00:15.4]} 49... Kf6 {[%clk 0:01:08]}
50. Ne1 {[%clk 0:00:15.7]} 50... Bf8 {[%clk 0:01:01]} 51. Nf3 {[%clk 0:00:13.9]}
51... c5 {[%clk 0:00:59.6]} 52. Nxg5 {[%clk 0:00:14.5]} 52... c4 {[%clk
0:00:58.2]} 53. bxc4 {[%clk 0:00:13.3]} 53... b4 {[%clk 0:00:59.2]} 54. Ne4+
{[%clk 0:00:11.8]} 54... Ke5 {[%clk 0:00:59.9]} 55. Nd2 {[%clk 0:00:13.7]} 55...
Kd4 {[%clk 0:00:59.9]} 56. Kf5 {[%clk 0:00:06.8]} 56... Bh6 {[%clk 0:00:59.5]}
57. Nb3+ {[%clk 0:00:07.1]} 57... Kxc4 {[%clk 0:01:00.8]} 58. Ke4 {[%clk
0:00:07.5]} 58... Kc3 {[%clk 0:01:01.5]} 59. Kd5 {[%clk 0:00:08.9]} 59... Kb2
{[%clk 0:00:58.8]} 60. Kc4 {[%clk 0:00:10.2]} 60... Bf8 {[%clk 0:00:59.6]} 61.
h6 {[%clk 0:00:08.4]} 61... Kxa2 {[%clk 0:00:58.9]} 62. h7 {[%clk 0:00:09]}
62... Bg7 {[%clk 0:01:00.3]} 63. Kxb4 {[%clk 0:00:10.6]} 63... Kb2 {[%clk
0:01:00.9]} 64. Na5 {[%clk 0:00:05]} 64... a2 {[%clk 0:01:01.1]} 65. Nc4+ {[%clk
0:00:06.3]} 65... Kc1 {[%clk 0:00:57.9]} 66. Na5 {[%clk 0:00:06.7]} 66... Kc2
{[%clk 0:00:50.5]} 67. Nb3 {[%clk 0:00:07.9]} 67... Kb2 {[%clk 0:00:49.3]} 68.
Ka4 {[%clk 0:00:09.1]} 68... Bc3 {[%clk 0:00:49.7]} 69. h8=Q {[%clk 0:00:02.2]}
69... Bxh8 {[%clk 0:00:49.3]} 70. Nc5 {[%clk 0:00:03.7]} 70... a1=Q+ {[%clk
0:00:48.7]} 0-1

[Event "*** Titled Tuesday Blitz"]
[Site "Chess.com"]
[Date "2019.04.02"]
[Round "8"]
[White "Koksal06"]
[Black "INLOVEWITHF"]
[Result "1-0"]
[WhiteElo "2364"]
[BlackElo "2272"]
[TimeControl "180+2"]
[EndTime "15:51:38 PDT"]
[Termination "Koksal06 won by resignation"]

1. d4 {[%clk 0:03:01.9]} 1... Nf6 {[%clk 0:03:00.1]} 2. c4 {[%clk 0:03:01.9]}
2... g6 {[%clk 0:03:00.9]} 3. Nc3 {[%clk 0:03:01.7]} 3... Bg7 {[%clk 0:03:02]}
4. e4 {[%clk 0:03:02.5]} 4... d6 {[%clk 0:03:03.6]} 5. Nf3 {[%clk 0:03:03.9]}
5... O-O {[%clk 0:03:04.4]} 6. Be2 {[%clk 0:03:05.4]} 6... e5 {[%clk 0:03:05.9]}
7. O-O {[%clk 0:03:07]} 7... Nc6 {[%clk 0:03:07.3]} 8. Be3 {[%clk 0:03:08.2]}
8... Ng4 {[%clk 0:03:00.9]} 9. Bg5 {[%clk 0:03:09]} 9... f6 {[%clk 0:03:01.5]}
10. Bc1 {[%clk 0:03:10.1]} 10... f5 {[%clk 0:03:01.8]} 11. Bg5 {[%clk
0:03:10.9]} 11... Qe8 {[%clk 0:03:03]} 12. exf5 {[%clk 0:03:09.5]} 12... Bxf5
{[%clk 0:02:49.1]} 13. h3 {[%clk 0:03:08.2]} 13... Nf6 {[%clk 0:02:38.8]} 14.
dxe5 {[%clk 0:03:01.6]} 14... Nxe5 {[%clk 0:02:40.7]} 15. Nd4 {[%clk 0:02:46.6]}
15... Bd7 {[%clk 0:02:39.3]} 16. f4 {[%clk 0:02:40.4]} 16... Nc6 {[%clk
0:02:28.9]} 17. Bf3 {[%clk 0:02:36.3]} 17... Ne4 {[%clk 0:01:54.2]} 18. Bxe4
{[%clk 0:02:17.7]} 18... Bxd4+ {[%clk 0:01:39.5]} 19. Kh1 {[%clk 0:02:18.6]}
19... Bg7 {[%clk 0:01:40.6]} 20. Bd5+ {[%clk 0:02:17.3]} 20... Kh8 {[%clk
0:01:40.1]} 21. Qd2 {[%clk 0:02:13.7]} 21... Qc8 {[%clk 0:01:40.3]} 22. Rae1
{[%clk 0:02:13]} 22... Re8 {[%clk 0:01:34.5]} 23. Ne4 {[%clk 0:02:07.8]} 23...
Bxh3 {[%clk 0:01:22.6]} 24. gxh3 {[%clk 0:02:08.2]} 24... Qxh3+ {[%clk
0:01:19.8]} 25. Qh2 {[%clk 0:02:09.3]} 25... Qf5 {[%clk 0:01:14.3]} 26. Ng3
{[%clk 0:02:00.1]} 26... Qd3 {[%clk 0:01:01.9]} 27. b3 {[%clk 0:02:00.8]} 27...
Nd4 {[%clk 0:00:50.4]} 28. Bxb7 {[%clk 0:01:41]} 28... Rxe1 {[%clk 0:00:37.1]}
29. Rxe1 {[%clk 0:01:41.6]} 29... Rf8 {[%clk 0:00:23]} 30. Be4 {[%clk
0:01:36.6]} 30... Qc3 {[%clk 0:00:23.7]} 31. Rf1 {[%clk 0:01:34.1]} 31... Nf5
{[%clk 0:00:16.7]} 32. Nxf5 {[%clk 0:01:30.9]} 32... gxf5 {[%clk 0:00:18.6]} 33.
Bd5 {[%clk 0:01:32.2]} 33... Qd3 {[%clk 0:00:14.3]} 34. Qg2 {[%clk 0:01:29.8]}
34... Re8 {[%clk 0:00:14.3]} 35. Qf3 {[%clk 0:01:22.9]} 35... Qd2 {[%clk
0:00:07.6]} 36. Bh4 {[%clk 0:01:07.3]} 36... Qxa2 {[%clk 0:00:05]} 37. Rg1
{[%clk 0:01:03.2]} 37... Qb2 {[%clk 0:00:04.1]} 38. Qg2 {[%clk 0:01:01.4]} 38...
Qc3 {[%clk 0:00:03]} 39. Bf2 {[%clk 0:00:26.9]} 39... Qf6 {[%clk 0:00:02.6]} 40.
Bxa7 {[%clk 0:00:25.7]} 40... Qh6+ {[%clk 0:00:02.9]} 41. Qh2 {[%clk 0:00:27.1]}
41... Qf6 {[%clk 0:00:04]} 42. Bf2 {[%clk 0:00:26.2]} 42... Qe7 {[%clk 0:00:03]}
43. Qg2 {[%clk 0:00:22.1]} 43... Qf6 {[%clk 0:00:03.5]} 44. Re1 {[%clk
0:00:23.1]} 44... Rf8 {[%clk 0:00:03.7]} 45. Rd1 {[%clk 0:00:21.9]} 45... Qh6+
{[%clk 0:00:03.5]} 46. Qh2 {[%clk 0:00:22.5]} 46... Qf6 {[%clk 0:00:03.9]} 47.
Bd4 {[%clk 0:00:23.2]} 47... Qg6 {[%clk 0:00:04.9]} 48. Bxg7+ {[%clk 0:00:24.2]}
48... Qxg7 {[%clk 0:00:06.5]} 49. Qg2 {[%clk 0:00:25.3]} 49... Qf6 {[%clk
0:00:07]} 50. Rg1 {[%clk 0:00:25.5]} 50... Qh4+ {[%clk 0:00:06.7]} 51. Qh2
{[%clk 0:00:26.8]} 51... Qf6 {[%clk 0:00:07.8]} 52. Qg3 {[%clk 0:00:28]} 52...
h6 {[%clk 0:00:08.4]} 53. Rg2 {[%clk 0:00:24.7]} 53... c5 {[%clk 0:00:08.7]} 54.
Rc2 {[%clk 0:00:20.7]} 54... Qa1+ {[%clk 0:00:08.2]} 55. Kh2 {[%clk 0:00:20.9]}
55... Qf6 {[%clk 0:00:03.6]} 56. Qc3 {[%clk 0:00:21.6]} 56... Qxc3 {[%clk
0:00:04.5]} 57. Rxc3 {[%clk 0:00:22.4]} 57... Re8 {[%clk 0:00:05.4]} 58. Kg3
{[%clk 0:00:21.8]} 58... Kg7 {[%clk 0:00:05.3]} 59. Kf3 {[%clk 0:00:23]} 59...
Kf6 {[%clk 0:00:06.5]} 60. Re3 {[%clk 0:00:24.9]} 60... Rxe3+ {[%clk 0:00:03]}
61. Kxe3 {[%clk 0:00:26.2]} 61... h5 {[%clk 0:00:03]} 62. Kf3 {[%clk 0:00:27.6]}
62... h4 {[%clk 0:00:03.9]} 63. Kg2 {[%clk 0:00:28.9]} 63... Kg6 {[%clk
0:00:04.7]} 64. Kh3 {[%clk 0:00:30.4]} 1-0

[Event "*** Titled Tuesday Blitz"]
[Site "Chess.com"]
[Date "2019.04.02"]
[Round "8"]
[White "MathiasWomacka"]
[Black "cukus"]
[Result "1-0"]
[WhiteElo "2282"]
[BlackElo "2383"]
[TimeControl "180+2"]
[EndTime "15:51:46 PDT"]
[Termination "MathiasWomacka won on time"]

1. e4 {[%clk 0:03:01.1]} 1... e5 {[%clk 0:02:59.9]} 2. Nf3 {[%clk 0:03:01.4]}
2... Nf6 {[%clk 0:03:00]} 3. Nxe5 {[%clk 0:03:01.6]} 3... d6 {[%clk 0:02:59.7]}
4. Nf3 {[%clk 0:03:02.1]} 4... Nxe4 {[%clk 0:02:59.3]} 5. d4 {[%clk 0:03:03.1]}
5... d5 {[%clk 0:02:59.3]} 6. Bd3 {[%clk 0:03:04.5]} 6... Bd6 {[%clk 0:02:59.5]}
7. O-O {[%clk 0:03:04.9]} 7... O-O {[%clk 0:02:59.8]} 8. c4 {[%clk 0:03:05.8]}
8... c6 {[%clk 0:03:00.7]} 9. Re1 {[%clk 0:03:05.5]} 9... Bf5 {[%clk 0:02:58.7]}
10. Qc2 {[%clk 0:03:03.1]} 10... Bg6 {[%clk 0:02:55.8]} 11. c5 {[%clk
0:03:02.5]} 11... Bc7 {[%clk 0:02:52.3]} 12. Nc3 {[%clk 0:03:03.4]} 12... Nxc3
{[%clk 0:02:39.4]} 13. bxc3 {[%clk 0:03:05.3]} 13... Bxd3 {[%clk 0:02:38.7]} 14.
Qxd3 {[%clk 0:03:07.2]} 14... Nd7 {[%clk 0:02:37.2]} 15. Bg5 {[%clk 0:02:51.1]}
15... f6 {[%clk 0:02:36.7]} 16. Bh4 {[%clk 0:02:43.3]} 16... Re8 {[%clk
0:02:36.4]} 17. c4 {[%clk 0:02:37.8]} 17... Nf8 {[%clk 0:02:26.4]} 18. Rxe8
{[%clk 0:02:36]} 18... Qxe8 {[%clk 0:02:26.5]} 19. cxd5 {[%clk 0:02:37.4]} 19...
cxd5 {[%clk 0:02:27.5]} 20. Qb3 {[%clk 0:02:31.7]} 20... Qc6 {[%clk 0:01:54]}
21. Bg3 {[%clk 0:02:20.7]} 21... Bxg3 {[%clk 0:01:48.5]} 22. hxg3 {[%clk
0:02:22.6]} 22... Re8 {[%clk 0:01:46.5]} 23. Rb1 {[%clk 0:02:10.1]} 23... Re7
{[%clk 0:01:40.6]} 24. Qa3 {[%clk 0:01:58.5]} 24... a6 {[%clk 0:01:09.1]} 25.
Rb6 {[%clk 0:01:57.9]} 25... Qc7 {[%clk 0:01:07.2]} 26. Qb3 {[%clk 0:01:49.5]}
26... Qd7 {[%clk 0:01:02.1]} 27. Rd6 {[%clk 0:01:47.6]} 27... Qg4 {[%clk
0:01:00.1]} 28. Qxd5+ {[%clk 0:01:45.9]} 28... Rf7 {[%clk 0:00:44.1]} 29. Rd8
{[%clk 0:00:47.7]} 29... g6 {[%clk 0:00:42.4]} 30. Rb8 {[%clk 0:00:48.2]} 30...
Qd7 {[%clk 0:00:26.3]} 31. Qxd7 {[%clk 0:00:41.6]} 31... Rxd7 {[%clk 0:00:26.7]}
32. Kf1 {[%clk 0:00:41.6]} 32... Kf7 {[%clk 0:00:27.3]} 33. Ke2 {[%clk
0:00:42.5]} 33... Ne6 {[%clk 0:00:27.8]} 34. Ke3 {[%clk 0:00:43.1]} 34... Nc7
{[%clk 0:00:28.4]} 35. Nd2 {[%clk 0:00:30.8]} 35... Nd5+ {[%clk 0:00:27.9]} 36.
Kd3 {[%clk 0:00:30.3]} 36... Nb4+ {[%clk 0:00:28]} 37. Kc4 {[%clk 0:00:31.3]}
37... Rxd4+ {[%clk 0:00:28.9]} 38. Kxd4 {[%clk 0:00:28.4]} 38... Nc6+ {[%clk
0:00:29.6]} 39. Kd5 {[%clk 0:00:29.5]} 39... Nxb8 {[%clk 0:00:30.5]} 40. Kd6
{[%clk 0:00:30.8]} 40... Ke8 {[%clk 0:00:30.5]} 41. Ne4 {[%clk 0:00:26.4]} 41...
Nd7 {[%clk 0:00:30.9]} 42. Ke6 {[%clk 0:00:25.7]} 42... Kd8 {[%clk 0:00:27.9]}
43. g4 {[%clk 0:00:20.8]} 43... Kc7 {[%clk 0:00:28.2]} 44. Nxf6 {[%clk
0:00:20.1]} 44... Nxc5+ {[%clk 0:00:28.8]} 45. Kf7 {[%clk 0:00:21.3]} 45... Nd3
{[%clk 0:00:28]} 46. f3 {[%clk 0:00:19.2]} 46... h5 {[%clk 0:00:18.1]} 47. gxh5
{[%clk 0:00:19.5]} 47... gxh5 {[%clk 0:00:18.9]} 48. Nxh5 {[%clk 0:00:20.4]}
48... Kd6 {[%clk 0:00:19.2]} 49. g4 {[%clk 0:00:20.1]} 49... b5 {[%clk
0:00:19.5]} 50. g5 {[%clk 0:00:19.4]} 50... a5 {[%clk 0:00:20.3]} 51. g6 {[%clk
0:00:18.4]} 51... Ne5+ {[%clk 0:00:20.9]} 52. Kf6 {[%clk 0:00:19.3]} 52... Nxg6
{[%clk 0:00:20.4]} 53. Kxg6 {[%clk 0:00:20.5]} 53... Ke5 {[%clk 0:00:18.9]} 54.
f4+ {[%clk 0:00:20.4]} 54... Ke4 {[%clk 0:00:16.3]} 55. f5 {[%clk 0:00:21.3]}
55... b4 {[%clk 0:00:17.4]} 56. f6 {[%clk 0:00:22.1]} 56... a4 {[%clk
0:00:18.1]} 57. f7 {[%clk 0:00:21.8]} 57... b3 {[%clk 0:00:19.3]} 58. axb3
{[%clk 0:00:23]} 58... axb3 {[%clk 0:00:18]} 59. f8=Q {[%clk 0:00:22.9]} 1-0

[Event "*** Titled Tuesday Blitz"]
[Site "Chess.com"]
[Date "2019.04.02"]
[Round "8"]
[White "pastouche06"]
[Black "STAYFlow"]
[Result "0-1"]
[WhiteElo "2367"]
[BlackElo "2256"]
[TimeControl "180+2"]
[EndTime "15:51:55 PDT"]
[Termination "STAYFlow won by resignation"]

1. c4 {[%clk 0:03:00]} 1... e6 {[%clk 0:02:59.3]} 2. Nf3 {[%clk 0:02:55.4]} 2...
d5 {[%clk 0:02:57.6]} 3. g3 {[%clk 0:02:56.7]} 3... Nf6 {[%clk 0:02:58.7]} 4.
Bg2 {[%clk 0:02:57.9]} 4... Be7 {[%clk 0:03:00.4]} 5. O-O {[%clk 0:02:57.7]}
5... O-O {[%clk 0:03:02]} 6. d4 {[%clk 0:02:59.1]} 6... dxc4 {[%clk 0:03:02.9]}
7. Ne5 {[%clk 0:02:54.5]} 7... Qd6 {[%clk 0:03:02.6]} 8. Nxc4 {[%clk 0:02:38]}
8... Qa6 {[%clk 0:03:03]} 9. Nbd2 {[%clk 0:02:24.4]} 9... Nc6 {[%clk 0:03:02.6]}
10. e3 {[%clk 0:02:23.9]} 10... Rd8 {[%clk 0:02:58]} 11. a3 {[%clk 0:02:03.8]}
11... Na5 {[%clk 0:02:54.5]} 12. Qc2 {[%clk 0:01:56]} 12... Nxc4 {[%clk
0:02:49.2]} 13. Nxc4 {[%clk 0:01:57.9]} 13... c5 {[%clk 0:02:45.2]} 14. dxc5
{[%clk 0:01:54.4]} 14... Bxc5 {[%clk 0:02:45]} 15. Bd2 {[%clk 0:01:38.1]} 15...
Nd5 {[%clk 0:02:25.1]} 16. b4 {[%clk 0:01:30]} 16... Be7 {[%clk 0:02:12.7]} 17.
e4 {[%clk 0:01:09.9]} 17... Nb6 {[%clk 0:01:51]} 18. Na5 {[%clk 0:01:08.7]}
18... Qd3 {[%clk 0:01:50.6]} 19. Qxd3 {[%clk 0:01:03.7]} 19... Rxd3 {[%clk
0:01:52.5]} 20. Bf4 {[%clk 0:01:04]} 20... f6 {[%clk 0:01:37.6]} 21. Rfc1 {[%clk
0:00:55.9]} 21... e5 {[%clk 0:01:35.2]} 22. Be3 {[%clk 0:00:57]} 22... Bd8
{[%clk 0:01:26.6]} 23. Bf1 {[%clk 0:00:50.4]} 23... Rd7 {[%clk 0:01:19.1]} 24.
Bb5 {[%clk 0:00:48.6]} 24... Rc7 {[%clk 0:01:02.8]} 25. Rd1 {[%clk 0:00:48.2]}
25... Bg4 {[%clk 0:00:58.1]} 26. Rdc1 {[%clk 0:00:21.4]} 26... Rac8 {[%clk
0:00:51.3]} 27. Kg2 {[%clk 0:00:21.1]} 27... Be6 {[%clk 0:00:33.8]} 28. Rxc7
{[%clk 0:00:11.3]} 28... Rxc7 {[%clk 0:00:33.5]} 29. Rc1 {[%clk 0:00:10.4]}
29... Bc8 {[%clk 0:00:29.9]} 30. Bxb6 {[%clk 0:00:04]} 30... axb6 {[%clk
0:00:20.7]} 31. Rxc7 {[%clk 0:00:04.1]} 31... Bxc7 {[%clk 0:00:21.4]} 32. Nc4
{[%clk 0:00:04.9]} 32... Be6 {[%clk 0:00:21.3]} 33. Kf3 {[%clk 0:00:03.5]} 33...
Kf8 {[%clk 0:00:22.4]} 34. Ke3 {[%clk 0:00:04.7]} 34... Ke7 {[%clk 0:00:23.9]}
35. f4 {[%clk 0:00:05.1]} 35... exf4+ {[%clk 0:00:16.2]} 36. gxf4 {[%clk
0:00:07]} 36... g5 {[%clk 0:00:17.1]} 37. f5 {[%clk 0:00:04.5]} 37... Bxc4
{[%clk 0:00:09.5]} 38. Bxc4 {[%clk 0:00:06.4]} 38... Bxh2 {[%clk 0:00:11]} 39.
Bd5 {[%clk 0:00:06.9]} 39... Be5 {[%clk 0:00:10.7]} 40. b5 {[%clk 0:00:06.8]}
40... Kd6 {[%clk 0:00:10.5]} 41. Bxb7 {[%clk 0:00:07.5]} 41... Kc5 {[%clk
0:00:12.1]} 42. Bc6 {[%clk 0:00:07.6]} 42... h5 {[%clk 0:00:12.1]} 43. Kf3
{[%clk 0:00:08.7]} 43... Bb2 {[%clk 0:00:13.3]} 44. Be8 {[%clk 0:00:09.7]} 44...
h4 {[%clk 0:00:11.3]} 45. a4 {[%clk 0:00:09.7]} 45... Kb4 {[%clk 0:00:12]} 46.
Kg4 {[%clk 0:00:10.7]} 46... Kxa4 {[%clk 0:00:12.5]} 47. Bc6 {[%clk 0:00:12.2]}
47... Kb4 {[%clk 0:00:13.6]} 48. Kh3 {[%clk 0:00:13.7]} 48... Kc5 {[%clk
0:00:13.6]} 49. Kg4 {[%clk 0:00:14.8]} 49... Kd4 {[%clk 0:00:14.8]} 50. Bd5
{[%clk 0:00:15]} 50... Ke3 {[%clk 0:00:15.5]} 51. Bc6 {[%clk 0:00:16.1]} 51...
Be5 {[%clk 0:00:16.5]} 52. Bd5 {[%clk 0:00:15.5]} 52... Kf2 {[%clk 0:00:17.7]}
53. Bb3 {[%clk 0:00:04.2]} 53... Kg2 {[%clk 0:00:17.8]} 54. Bd1 {[%clk
0:00:05.6]} 54... h3 {[%clk 0:00:14.9]} 55. Bf3+ {[%clk 0:00:06.6]} 55... Kf2
{[%clk 0:00:15.2]} 56. Bh1 {[%clk 0:00:07.6]} 56... Kg1 {[%clk 0:00:13.5]} 57.
Bf3 {[%clk 0:00:04.9]} 57... h2 {[%clk 0:00:14.6]} 0-1

[Event "*** Titled Tuesday Blitz"]
[Site "Chess.com"]
[Date "2019.04.02"]
[Round "8"]
[White "wannabe2700"]
[Black "jcgs1030"]
[Result "0-1"]
[WhiteElo "2593"]
[BlackElo "2355"]
[TimeControl "180+2"]
[EndTime "15:52:04 PDT"]
[Termination "jcgs1030 won by checkmate"]

1. e4 {[%clk 0:03:01.9]} 1... c5 {[%clk 0:02:57.7]} 2. Nf3 {[%clk 0:03:02.8]}
2... d6 {[%clk 0:02:58.7]} 3. d4 {[%clk 0:03:04.3]} 3... cxd4 {[%clk 0:03:00.6]}
4. Nxd4 {[%clk 0:03:06.2]} 4... Nf6 {[%clk 0:03:01.6]} 5. Nc3 {[%clk 0:03:07.6]}
5... g6 {[%clk 0:03:03]} 6. Be3 {[%clk 0:03:08.7]} 6... Bg7 {[%clk 0:03:03.7]}
7. f3 {[%clk 0:03:10.3]} 7... O-O {[%clk 0:03:04.9]} 8. Qd2 {[%clk 0:03:12]}
8... Nc6 {[%clk 0:03:06.3]} 9. O-O-O {[%clk 0:03:13]} 9... d5 {[%clk 0:03:07.4]}
10. Kb1 {[%clk 0:03:13.7]} 10... Nxd4 {[%clk 0:03:07.8]} 11. e5 {[%clk
0:03:14.2]} 11... Nf5 {[%clk 0:03:09.1]} 12. exf6 {[%clk 0:03:14.1]} 12... exf6
{[%clk 0:03:10.5]} 13. Nxd5 {[%clk 0:03:12.8]} 13... Be6 {[%clk 0:03:10.9]} 14.
Bc5 {[%clk 0:03:05.5]} 14... Bxd5 {[%clk 0:03:05.1]} 15. Bxf8 {[%clk 0:02:55]}
15... Qxf8 {[%clk 0:03:06.1]} 16. Qxd5 {[%clk 0:02:54.6]} 16... Ne3 {[%clk
0:03:07]} 17. Qd2 {[%clk 0:02:50.3]} 17... Nxd1 {[%clk 0:02:59.3]} 18. Qxd1
{[%clk 0:02:52.2]} 18... f5 {[%clk 0:02:58.7]} 19. c3 {[%clk 0:02:51.7]} 19...
b5 {[%clk 0:02:52.9]} 20. Bxb5 {[%clk 0:02:37.8]} 20... Rb8 {[%clk 0:02:53.1]}
21. Qa4 {[%clk 0:02:18]} 21... Qc5 {[%clk 0:02:47.1]} 22. Bc4 {[%clk 0:01:56.8]}
22... Bxc3 {[%clk 0:02:38.7]} 23. Bb3 {[%clk 0:01:57.8]} 23... Bg7 {[%clk
0:02:19]} 24. Re1 {[%clk 0:01:56.9]} 24... Rf8 {[%clk 0:01:51.8]} 25. Qc4 {[%clk
0:01:38.3]} 25... Qf2 {[%clk 0:01:49.6]} 26. Qe2 {[%clk 0:01:38.2]} 26... Qd4
{[%clk 0:01:49.7]} 27. Rd1 {[%clk 0:01:36.7]} 27... Qf6 {[%clk 0:01:50.8]} 28.
Rd7 {[%clk 0:01:35.7]} 28... h5 {[%clk 0:01:46.6]} 29. f4 {[%clk 0:01:33.1]}
29... Kh7 {[%clk 0:01:45.6]} 30. Rd2 {[%clk 0:01:24.1]} 30... a5 {[%clk
0:01:32]} 31. Qb5 {[%clk 0:01:23.2]} 31... Rd8 {[%clk 0:01:29.4]} 32. Bd5 {[%clk
0:01:17.5]} 32... a4 {[%clk 0:01:27.1]} 33. a3 {[%clk 0:01:15.2]} 33... Rd6
{[%clk 0:01:24.6]} 34. Qc4 {[%clk 0:01:12.3]} 34... Rb6 {[%clk 0:01:23.5]} 35.
Qe2 {[%clk 0:01:09.7]} 35... Qd6 {[%clk 0:01:18.6]} 36. Ka2 {[%clk 0:01:06.3]}
36... Qxf4 {[%clk 0:01:17.7]} 37. Bxf7 {[%clk 0:00:54.7]} 37... Qxh2 {[%clk
0:01:16.9]} 38. Qe8 {[%clk 0:00:54.6]} 38... Qf4 {[%clk 0:01:13.1]} 39. Rc2
{[%clk 0:00:51.3]} 39... Qe4 {[%clk 0:01:01.9]} 40. Qxe4 {[%clk 0:00:47.3]}
40... fxe4 {[%clk 0:01:02.6]} 41. Be8 {[%clk 0:00:43.6]} 41... e3 {[%clk
0:01:02.3]} 42. Bxa4 {[%clk 0:00:42]} 42... Bxb2 {[%clk 0:01:02.4]} 43. Bb3
{[%clk 0:00:36]} 43... Bd4 {[%clk 0:01:01.2]} 44. a4 {[%clk 0:00:35.1]} 44...
Kh6 {[%clk 0:00:59.6]} 45. Bc4 {[%clk 0:00:33]} 45... Rb4 {[%clk 0:00:50.4]} 46.
Bb5 {[%clk 0:00:29.1]} 46... Kg5 {[%clk 0:00:47.6]} 47. Ka3 {[%clk 0:00:29.6]}
47... Rb1 {[%clk 0:00:47.9]} 48. Bd3 {[%clk 0:00:22.5]} 48... Rd1 {[%clk
0:00:40.2]} 49. Be2 {[%clk 0:00:19.1]} 49... Rd2 {[%clk 0:00:38.9]} 50. Kb3
{[%clk 0:00:16.3]} 50... Kf4 {[%clk 0:00:36.1]} 51. a5 {[%clk 0:00:11.1]} 51...
h4 {[%clk 0:00:22.9]} 52. a6 {[%clk 0:00:10.5]} 52... Rxc2 {[%clk 0:00:23.6]}
53. Kxc2 {[%clk 0:00:11.4]} 53... Kg3 {[%clk 0:00:25.5]} 54. Kd3 {[%clk
0:00:10.8]} 54... Ba7 {[%clk 0:00:25.2]} 55. Ke4 {[%clk 0:00:03.4]} 55... Kxg2
{[%clk 0:00:23.2]} 56. Kf4 {[%clk 0:00:03]} 56... Kf2 {[%clk 0:00:24.4]} 57. Bg4
{[%clk 0:00:03.5]} 57... e2 {[%clk 0:00:25.5]} 58. Bxe2 {[%clk 0:00:02.6]} 58...
Kxe2 {[%clk 0:00:26.8]} 59. Kg4 {[%clk 0:00:04.3]} 59... g5 {[%clk 0:00:27.6]}
60. Kxg5 {[%clk 0:00:02.6]} 60... h3 {[%clk 0:00:27.6]} 61. Kg4 {[%clk
0:00:04.1]} 61... h2 {[%clk 0:00:29.5]} 62. Kg3 {[%clk 0:00:05.4]} 62... h1=Q
{[%clk 0:00:31.4]} 63. Kg4 {[%clk 0:00:06.4]} 63... Qa8 {[%clk 0:00:33.3]} 64.
Kf5 {[%clk 0:00:07.1]} 64... Qb8 {[%clk 0:00:35.2]} 65. Ke6 {[%clk 0:00:07.8]}
65... Qb6+ {[%clk 0:00:37]} 66. Kd5 {[%clk 0:00:09.3]} 66... Qc5+ {[%clk
0:00:38.8]} 67. Ke4 {[%clk 0:00:10.1]} 67... Qa5 {[%clk 0:00:40.7]} 68. Kf4
{[%clk 0:00:11.2]} 68... Qxa6 {[%clk 0:00:42.5]} 69. Kg4 {[%clk 0:00:12.6]}
69... Ke3 {[%clk 0:00:42.2]} 70. Kh4 {[%clk 0:00:13.5]} 70... Qg6 {[%clk
0:00:42.8]} 71. Kh3 {[%clk 0:00:15.4]} 71... Kf3 {[%clk 0:00:44.2]} 72. Kh4
{[%clk 0:00:16.8]} 72... Qg4# {[%clk 0:00:45.3]} 0-1